bitfinex/quotes_ETHUSD_20241003
["timestamp","ask_amount","ask_price","bid_price","bid_amount"]
[1727961755483,4.25378,2350.9,2350.4,4.2545]
[1727961756119,0.7944,2351.1,2350.7,4.25395]
[1727961756324,0.8301,2351.5,2351.0,4.25349]
[1727961756481,0.8301,2351.5,2351.2,4.25306]
[1727961756919,0.8301,2351.5,2351.1,4.25331]
[1727961757287,4.25236,2351.7,2351.1,4.25323]
[1727961757538,4.25256,2351.6,2351.1,4.678553]
[1727961757841,0.7582,2351.8,2350.8,4.25378]
[1727961757985,4.25324,2351.2,2350.7,4.25397]
[1727961758187,4.25324,2351.2,2350.7,8.50794]
[1727961758530,4.25324,2351.2,2350.4,0.69073418]
[1727961758531,4.25293,2351.4,2350.9,4.25367]
[1727961758683,0.7582,2351.8,2351.0,0.08506523]
[1727961758885,5.01036,2351.8,2350.7,4.25393]
[1727961759239,5.01036,2351.8,2351.5,4.25249]
[1727961759240,0.7582,2351.8,2351.5,4.25249]
[1727961759402,0.7582,2351.8,2351.4,4.25278]
[1727961759614,0.8193,2352.2,2352.0,4.25169]
[1727961759953,0.8193,2352.2,2351.4,3.0]
[1727961759954,0.8193,2352.6,2351.7,0.8267]
[1727961760131,5.51459171,2353.0,2352.4,4.25088]
[1727961760341,4.25026,2352.8,2352.3,4.25113]
[1727961760632,9.31938,2353.0,2352.0,4.25153]
[1727961760837,5.06932,2353.0,2352.5,4.25079]
[1727961761131,4.25013,2352.9,2352.4,4.25087]
[1727961761356,0.55,2352.8,2352.4,4.25087]
[1727961761923,4.80025,2352.8,2352.4,4.25087]
[1727961762308,0.55,2352.8,2352.4,4.25087]
[1727961762709,0.55,2352.8,2352.2,8.50243]
[1727961763018,4.25013,2352.9,2352.1,3.0]
[1727961763019,0.55,2352.5,2352.1,3.0]
[1727961763346,4.25187,2352.0,2351.4,5.07584]
[1727961763647,4.25216,2351.8,2351.1,9.32974]
[1727961763867,4.25235,2351.7,2351.1,10.313214]
[1727961764042,4.25242,2351.6,2351.1,6.059994]
[1727961764244,0.55,2351.9,2351.1,6.059994]
[1727961764245,0.55,2351.9,2351.3,4.25292]
[1727961764546,7.25102,2352.4,2351.1,6.059874]
[1727961764547,0.55,2351.7,2351.1,6.059874]
[1727961764704,4.25207,2351.8,2351.1,1.806674]
[1727961764904,0.55,2351.9,2350.8,0.56947375]
[1727961765233,0.55,2351.9,2350.8,8.50743]
[1727961765234,4.2528,2351.4,2350.8,8.50743]
[1727961765559,5.00616,2351.6,2351.0,4.2535]
[1727961765873,5.00616,2351.6,2351.1,4.25322]
[1727961766155,4.25262,2351.5,2351.0,4.2535]
[1727961766453,4.25262,2351.5,2350.8,8.50749]
[1727961766454,4.253,2351.3,2350.8,8.50749]
[1727961766634,0.55,2351.5,2350.7,4.25405]
[1727961766635,4.25288,2351.4,2350.7,4.25405]
[1727961766808,0.55,2351.5,2351.0,4.25348]
[1727961766809,4.80269,2351.5,2351.0,4.25348]
[1727961767007,0.7536,2351.6,2351.0,4.25348]
[1727961767008,0.7536,2351.6,2351.1,4.25332]
[1727961767247,5.00602,2351.6,2351.0,4.25343]
[1727961767418,5.00602,2351.6,2351.2,4.25312]
[1727961767622,0.55,2351.8,2351.3,4.25285]
[1727961767829,0.55,2351.8,2351.2,5.103635]
[1727961768024,4.25216,2351.8,2351.3,4.25278]
[1727961768221,0.7731,2351.9,2351.5,4.2526]
[1727961768432,0.7731,2351.9,2351.5,4.67786]
[1727961768666,3.0,2352.3,2351.5,4.67786]
[1727961768667,0.771,2352.3,2351.6,0.08504007]
[1727961768827,4.2502,2352.9,2351.7,6.13869963]
[1727961769033,4.2502,2352.9,2352.4,4.25096]
[1727961769347,4.25019,2352.9,2352.4,4.25089]
[1727961769551,8.49972,2353.1,2352.4,5.101078]
[1727961769755,0.771,2353.2,2352.5,0.08500831]
[1727961769916,4.24967,2353.2,2352.7,4.25033]
[1727961770112,0.005,2353.4,2352.8,0.08499346]
[1727961770424,0.005,2353.4,2352.9,4.24992]
[1727961770639,0.005,2353.4,2353.0,0.08497679]
[1727961770851,0.005,2353.4,2353.3,4.24935]
[1727961771051,0.005,2353.4,2353.1,4.24961]
[1727961771557,4.24956,2353.2,2352.6,4.25043]
[1727961771756,4.24971,2353.1,2352.7,3.0]
[1727961772062,0.005,2353.4,2352.7,3.0]
[1727961772063,4.24943,2353.3,2352.7,7.25032]
[1727961772272,4.24943,2353.3,2352.8,4.25024]
[1727961772575,0.005,2353.4,2352.9,0.08499365]
[1727961772861,0.005,2353.4,2353.2,4.24943]
[1727961773025,0.005,2353.4,2353.0,4.24974]
[1727961773636,0.005,2353.4,2352.7,4.975462]
[1727961773637,4.24944,2353.3,2352.7,4.975462]
[1727961773835,4.79968,2353.2,2352.7,7.975452]
[1727961774158,4.24935,2353.3,2352.8,4.25023]
[1727961774460,4.24935,2353.3,2352.8,5.0477562]
[1727961774674,4.24987,2353.1,2352.6,4.2506]
[1727961774835,0.55,2353.1,2352.8,4.25018]
[1727961775370,4.7998,2353.1,2352.6,4.25059]
[1727961775517,0.55,2353.1,2352.6,4.25059]
[1727961775722,0.55,2353.1,2352.1,3.0]
[1727961775932,0.55,2353.1,2352.5,4.2507]
[1727961775933,4.25002,2353.0,2352.5,4.2507]
[1727961776284,0.7855,2353.2,2352.1,4.25151]
[1727961776285,0.55,2352.6,2352.1,4.25151]
[1727961776490,0.55,2352.6,2352.3,4.25114]
[1727961776777,4.25016,2352.9,2352.4,0.08501865]
[1727961777065,3.0,2353.0,2352.6,4.25061]
[1727961777066,0.55,2353.0,2352.6,4.25061]
[1727961777225,4.79991,2353.0,2352.5,4.25064]
[1727961777432,0.55,2352.8,2352.4,4.33596865]
[1727961777631,0.55,2352.8,2352.3,4.25098]
[1727961777938,4.80026,2352.8,2352.4,0.425098]
[1727961778142,4.24982,2353.1,2352.4,0.0850108]
[1727961778354,4.24982,2353.1,2352.5,4.25067]
[1727961778355,0.55,2352.9,2352.5,4.25067]
[1727961778560,0.55,2352.9,2352.5,8.50137]
[1727961778760,0.55,2353.1,2352.3,4.25104]
[1727961778964,0.55,2352.7,2352.3,4.25104]
[1727961779132,4.80045,2352.7,2352.3,4.25104]
[1727961779334,0.55,2352.7,2352.3,8.50208]
[1727961779533,0.55,2352.7,2352.3,9.352288]
[1727961779743,4.25021,2352.9,2352.4,4.33589546]
[1727961780025,8.5004,2352.9,2352.4,4.33589546]
[1727961780147,4.25019,2352.9,2352.4,4.33589546]
[1727961780338,4.25018,2352.9,2352.4,0.94371435]
[1727961780538,4.25018,2352.9,2352.3,4.25104]
[1727961780539,4.25036,2352.8,2352.3,4.25104]
[1727961780769,0.55,2352.7,2352.1,4.2514]
[1727961780934,4.25062,2352.6,2352.0,4.25167]
[1727961781134,0.55,2353.1,2351.9,4.25186]
[1727961781135,4.25127,2352.3,2351.9,4.25186]
[1727961781331,0.55,2352.5,2351.8,4.25198]
[1727961781584,3.8125,2353.0,2352.2,4.25117]
[1727961781585,0.55,2352.6,2352.2,4.25117]
[1727961781782,0.8125,2353.0,2352.6,4.25052]
[1727961781993,4.25035,2352.8,2352.3,4.25104]
[1727961782273,0.8125,2353.0,2352.7,4.25043]
[1727961782636,0.8125,2353.0,2352.7,4.25034]
[1727961783173,4.24955,2353.2,2352.7,9.3592913]
[1727961783346,4.24955,2353.2,2352.8,4.25021]
[1727961783697,0.005,2353.4,2353.0,4.24971]
[1727961783891,0.005,2353.4,2353.1,4.2497]
[1727961784115,0.005,2353.4,2353.3,4.24935]
[1727961784394,0.005,2353.4,2353.3,4.68278373]
[1727961784610,0.005,2353.4,2353.3,0.43343373]
[1727961784901,4.25431,2353.4,2352.8,4.25017]
[1727961785139,4.25431,2353.4,2353.0,4.24988]
[1727961785264,0.005,2353.4,2353.1,4.24959]
[1727961785594,0.005,2353.4,2353.3,4.24935]
[1727961785762,0.005,2353.4,2353.1,0.50994024]
[1727961785975,0.005,2353.4,2353.2,4.33437012]
[1727961786293,0.005,2353.4,2352.8,7.25011]
[1727961786490,4.24949,2353.3,2352.8,4.25011]
[1727961786653,0.005,2353.4,2352.5,4.25072]
[1727961786856,8.50005,2353.0,2352.6,4.25058]
[1727961787056,4.24999,2353.0,2352.6,4.25058]
[1727961787588,4.24968,2353.2,2352.7,4.25032]
[1727961787752,4.2499,2353.0,2352.5,4.25071]
[1727961787954,4.80034,2352.8,2352.3,4.25107]
[1727961788406,4.80034,2352.8,2352.2,4.25117]
[1727961788697,9.05071,2352.8,2352.3,4.25114]
[1727961788854,0.823,2353.0,2352.4,4.25095]
[1727961788855,4.80014,2352.9,2352.4,4.25095]
[1727961789053,5.073,2353.0,2352.5,4.25071]
[1727961789054,9.32297,2353.0,2352.5,4.25071]
[1727961789258,0.823,2353.0,2352.6,4.25047]
[1727961789616,5.073,2353.0,2352.4,4.25087]
[1727961789906,4.25015,2352.9,2352.4,8.50174]
[1727961790059,5.073,2353.0,2352.5,4.25066]
[1727961790262,5.073,2353.0,2352.5,4.25067]
[1727961790263,5.07292,2353.0,2352.5,4.25067]
[1727961790457,4.25015,2352.9,2352.5,0.425067]
[1727961790694,4.25015,2352.9,2352.4,8.50171]
[1727961790900,4.25015,2352.9,2352.4,4.25084]
[1727961791088,5.07289,2353.0,2352.6,4.25061]
[1727961791289,4.2501,2352.9,2352.2,0.508367]
[1727961791539,4.25123,2352.3,2351.8,4.25202]
[1727961791857,4.252,2351.9,2351.4,4.25269]
[1727961792146,4.25141,2352.2,2351.8,4.25197]
[1727961792348,0.8081,2352.3,2351.9,4.25187]
[1727961792504,0.8081,2352.3,2351.9,4.25185]
[1727961792706,4.25087,2352.5,2352.1,4.2515]
[1727961792905,4.25087,2352.5,2352.0,4.25153]
[1727961792906,4.25098,2352.4,2352.0,4.25153]
[1727961793133,0.8081,2352.6,2352.0,0.935389]
[1727961793347,0.7632,2353.0,2352.8,4.25013]
[1727961793565,4.24942,2353.3,2352.9,4.24996]
[1727961793566,0.7632,2353.3,2352.9,4.24996]
[1727961793843,4.2497,2353.2,2352.7,4.2504]
[1727961794044,4.24972,2353.1,2352.7,4.2504]
[1727961794260,0.005,2353.4,2353.1,4.24969]
[1727961794408,0.005,2353.4,2352.9,4.24998]
[1727961794721,4.24953,2353.2,2352.7,3.0]
[1727961795046,4.25427,2353.4,2352.7,4.025058]
[1727961795252,4.24964,2353.2,2352.7,4.25042]
[1727961795410,0.005,2353.4,2352.4,7.25083]
[1727961795748,4.25124,2352.3,2351.8,8.50388]
[1727961796058,4.25056,2352.7,2352.0,4.2516]
[1727961796208,0.55,2352.6,2351.8,4.25193]
[1727961796412,0.55,2352.5,2352.1,4.25137]
[1727961796734,0.55,2352.5,2351.5,0.7574]
[1727961796735,0.7562,2352.8,2352.4,4.25088]
[1727961796904,5.00653,2352.8,2352.3,4.25108]
[1727961797111,4.25087,2352.5,2352.0,4.25157]
[1727961797661,8.50183,2352.5,2352.0,4.25157]
[1727961797944,4.25119,2352.3,2351.7,4.25211]
[1727961798251,0.55,2352.7,2351.7,4.25211]
[1727961798252,4.80053,2352.7,2351.7,4.25223]
[1727961798412,4.25082,2352.5,2352.1,4.25139]
[1727961798611,4.25082,2352.5,2351.9,4.25179]
[1727961798612,4.25108,2352.4,2351.9,4.25179]
[1727961799160,4.25119,2352.3,2351.9,4.25179]
[1727961799361,8.50312,2352.1,2351.7,4.25215]
[1727961799521,0.7961,2352.2,2351.7,3.926196]
[1727961799717,5.04744,2352.2,2351.8,4.25204]
[1727961799945,0.7961,2352.6,2352.2,4.25131]
[1727961800173,0.7961,2353.0,2352.7,4.25035]
[1727961800367,5.0456,2353.3,2352.8,4.25017]
[1727961800522,5.0456,2353.3,2352.9,4.25006]
[1727961801047,4.24956,2353.2,2352.8,4.25017]
[1727961801244,4.24956,2353.2,2352.8,0.850066]
[1727961801245,4.24972,2353.1,2352.8,0.850066]
[1727961801558,4.79976,2353.1,2352.8,0.850066]
[1727961802065,0.55,2353.1,2352.4,4.2509]
[1727961802394,0.55,2353.1,2352.8,4.25013]
[1727961802526,5.04555,2353.3,2352.8,4.25013]
[1727961802527,4.24956,2353.2,2352.8,4.25013]
[1727961802866,4.24956,2353.2,2352.7,4.33534777]
[1727961803069,4.24972,2353.1,2352.7,5.10893678]
[1727961803626,0.7961,2353.3,2352.7,0.94358467]
[1727961803831,5.04562,2353.3,2352.8,4.25014]
[1727961804042,4.79967,2353.2,2352.7,4.25039]
[1727961804242,4.24981,2353.1,2352.7,4.25039]
[1727961805158,4.25003,2353.0,2352.6,4.25052]
[1727961805339,4.25077,2352.6,2352.2,4.2513]
[1727961805546,4.25051,2352.7,2352.2,0.85029]
[1727961805851,4.80093,2352.5,2352.1,4.2515]
[1727961806173,4.25003,2353.0,2352.5,4.25065]
[1727961806395,0.7963,2353.2,2352.6,4.2506]
[1727961806396,5.04595,2353.2,2352.6,4.2506]
[1727961806604,0.7963,2353.2,2352.7,0.08500412]
[1727961806900,5.04591,2353.2,2352.8,8.50041]
[1727961807102,5.04591,2353.2,2352.2,3.0]
[1727961807103,5.04584,2353.2,2352.2,8.5024]
[1727961807306,0.005,2353.4,2351.9,6.36749669]
[1727961807307,4.2509,2352.5,2352.0,4.2516]
[1727961807473,4.2509,2352.5,2352.0,3.0]
[1727961807474,4.25113,2352.4,2352.0,3.0]
[1727961807677,0.813,2352.9,2352.5,4.25066]
[1727961808010,0.813,2352.9,2352.5,4.675726]
[1727961808180,5.06307,2352.9,2352.5,4.675726]
[1727961808354,0.813,2352.9,2352.6,4.25052]
[1727961808556,4.24981,2353.1,2352.7,4.25042]
[1727961808901,4.24978,2353.1,2352.6,4.25044]
[1727961809057,0.8222,2353.2,2352.6,0.8926346]
[1727961809255,0.8222,2353.2,2352.9,4.24993]
[1727961810115,0.55,2353.1,2352.5,0.425066]
[1727961810324,0.55,2353.1,2352.7,4.2504]
[1727961810475,0.8222,2353.2,2352.8,4.2501]
[1727961810676,0.8222,2353.2,2352.9,4.25006]
[1727961810970,5.07174,2353.2,2352.6,4.25052]
[1727961811175,5.07174,2353.2,2352.5,0.425066]
[1727961811176,5.07174,2353.2,2352.8,4.2501]
[1727961811387,4.25428,2353.4,2353.0,4.24978]
[1727961811388,0.005,2353.4,2353.0,4.24978]
[1727961811706,0.005,2353.4,2353.1,4.24955]
[1727961811858,0.005,2353.4,2353.2,4.33446171]
[1727961812058,0.005,2353.4,2353.2,5.19286288]
[1727961812393,0.005,2353.4,2353.3,4.24935]
[1727961812707,0.005,2353.4,2352.8,4.25013]
[1727961812708,4.24948,2353.3,2352.8,4.25013]
[1727961812858,4.25006,2353.0,2352.5,7.675826]
[1727961813058,0.55,2353.1,2352.5,0.425066]
[1727961813302,4.25056,2352.7,2352.2,0.7858]
[1727961813466,4.24997,2353.0,2352.3,0.08501212]
[1727961813666,4.25037,2352.8,2352.4,4.25097]
[1727961813881,4.25021,2352.9,2352.4,4.25097]
[1727961814311,4.2506,2352.7,2352.1,4.25139]
[1727961814456,4.2506,2352.7,2352.3,4.25114]
[1727961814659,8.5004,2352.9,2352.4,0.08501375]
[1727961815018,0.55,2352.7,2352.2,4.25126]
[1727961815318,0.55,2352.5,2351.7,4.25212]
[1727961815458,0.55,2352.5,2351.8,4.84468178]
[1727961815459,4.25116,2352.3,2351.8,4.84468178]
[1727961815659,0.55,2352.3,2351.9,4.25177]
[1727961815903,4.80123,2352.3,2351.8,0.59274178]
[1727961816059,0.55,2352.3,2351.9,4.25187]
[1727961816261,4.25141,2352.2,2351.8,4.84476178]
[1727961816574,0.55,2352.2,2351.9,4.25186]
[1727961816907,4.80087,2352.5,2352.0,4.25156]
[1727961817403,0.55,2352.5,2352.2,4.25126]
[1727961817558,4.80079,2352.5,2352.1,4.2515]
[1727961817801,4.80079,2352.5,2351.9,5.16144218]
[1727961817981,4.25116,2352.3,2351.9,5.16144218]
[1727961818586,4.251,2352.4,2352.0,4.25166]
[1727961819511,5.13102042,2352.7,2352.3,4.25107]
[1727961819702,4.251,2352.4,2352.0,5.19286522]
[1727961819908,0.55,2352.6,2351.6,1.67529779]
[1727961819909,0.55,2352.2,2351.6,5.92766779]
[1727961820225,0.55,2352.2,2351.5,3.0]
[1727961820460,0.55,2352.2,2351.4,0.88239779]
[1727961820461,0.55,2351.7,2351.4,4.25268]
[1727961820600,0.55,2351.7,2351.1,0.88239779]
[1727961820802,4.2533,2351.2,2350.7,5.13638779]
[1727961821048,4.2533,2351.2,2350.7,4.97552845]
[1727961821049,4.25334,2351.1,2350.7,4.97552845]
[1727961821200,4.25334,2351.1,2350.7,4.97555845]
[1727961821567,4.80261,2351.5,2350.8,4.25377]
[1727961821568,0.55,2351.5,2350.8,4.25377]
[1727961821736,4.25305,2351.3,2350.8,4.25377]
[1727961821916,0.55,2351.3,2350.9,4.25367]
[1727961822255,0.55,2351.3,2350.9,4.25359]
[1727961822417,0.55,2351.3,2350.5,4.25438]
[1727961822418,4.25351,2351.0,2350.5,4.25427]
[1727961822599,4.25351,2351.0,2350.6,4.25422]
[1727961824823,0.55,2350.1,2349.7,4.25577]
[1727961825048,0.55,2350.2,2349.8,4.25565]
[1727961825250,0.55,2350.2,2349.8,4.25559]
[1727961825804,5.02305,2350.7,2350.1,4.25499]
[1727961826008,0.7689,2350.7,2350.3,4.25475]
[1727961826209,7.2534,2351.1,2350.7,4.25403]
[1727961826210,0.7689,2351.0,2350.7,4.25403]
[1727961826405,4.69833445,2351.3,2350.8,4.25377]
[1727961826652,4.25323,2351.2,2350.7,4.25403]
[1727961826850,1.21425445,2351.3,2350.7,4.25403]
[1727961826851,0.7689,2351.3,2350.7,4.25403]
[1727961827082,0.7636,2351.7,2350.8,0.03758545]
[1727961827216,0.7636,2352.1,2351.7,4.25215]
[1727961827572,5.01469,2352.4,2351.8,4.25197]
[1727961827730,4.25134,2352.2,2351.7,4.25223]
[1727961827907,5.01469,2352.4,2351.5,3.0]
[1727961827908,0.7636,2352.4,2351.5,3.0]
[1727961828110,0.7636,2352.4,2352.0,4.25169]
[1727961828370,0.7636,2352.4,2351.9,7.25178]
[1727961828663,0.7636,2352.4,2352.1,4.25145]
[1727961828816,0.7636,2352.4,2352.0,4.25159]
[1727961829012,4.25118,2352.3,2351.6,0.83791996]
[1727961829255,0.7636,2352.4,2351.3,5.03994]
[1727961829256,5.01471,2352.4,2351.8,4.25204]
[1727961829807,4.2513,2352.3,2351.8,4.25204]
[1727961830016,4.25135,2352.2,2351.8,4.25204]
[1727961830238,4.25135,2352.2,2351.6,4.25232]
[1727961830448,8.50281,2352.2,2351.6,9.229872]
[1727961830864,0.55,2352.2,2351.8,4.25201]
[1727961831092,4.80139,2352.2,2351.7,4.25221]
[1727961831365,0.55,2352.2,2351.6,0.725232]
[1727961831566,0.7636,2352.4,2351.8,4.25191]
[1727961831567,4.80124,2352.3,2351.8,4.25191]
[1727961831739,0.55,2352.3,2351.4,3.0]
[1727961831937,0.55,2351.9,2351.3,0.787]
[1727961832273,0.55,2351.9,2351.3,7.25288]
[1727961832274,4.25207,2351.8,2351.3,7.25288]
[1727961832437,4.25207,2351.8,2351.3,12.656349]
[1727961832639,4.80198,2351.9,2351.4,4.25278]
[1727961833096,5.04847,2351.8,2351.4,4.25278]
[1727961833402,0.7964,2351.8,2351.4,4.25278]
[1727961833558,0.7964,2351.8,2351.5,4.25259]
[1727961833759,0.55,2351.9,2351.5,4.25259]
[1727961834400,0.55,2351.9,2351.0,3.8029]
[1727961834401,4.25235,2351.7,2351.2,4.25305]
[1727961834568,0.55,2352.0,2350.6,5.37919963]
[1727961834569,0.55,2351.5,2350.8,4.25382]
[1727961834758,4.25288,2351.4,2350.8,8.50752]
[1727961834963,0.55,2351.7,2351.2,4.25304]
[1727961835401,4.80227,2351.7,2351.2,8.50609]
[1727961835600,4.80227,2351.7,2351.2,4.25304]
[1727961835601,0.55,2351.7,2351.2,4.25304]
[1727961835910,4.25243,2351.6,2351.2,4.25304]
[1727961836090,4.25243,2351.6,2351.0,4.25339]
[1727961836263,0.55,2351.7,2350.8,4.25375]
[1727961836264,4.25278,2351.4,2350.8,4.25375]
[1727961836465,0.55,2351.7,2350.4,4.2545]
[1727961836466,5.04266,2351.1,2350.4,4.2545]
[1727961836708,0.7892,2351.1,2350.8,4.25386]
[1727961836913,4.25307,2351.3,2350.8,8.50772]
[1727961837081,5.042,2351.4,2350.9,4.25359]
[1727961837262,0.7892,2351.4,2350.9,4.25359]
[1727961837464,4.25297,2351.3,2350.8,4.25386]
[1727961837661,4.25297,2351.3,2350.5,4.25439]
[1727961837662,4.25351,2351.0,2350.5,4.25439]
[1727961837907,0.7892,2351.4,2350.3,0.7553]
[1727961838219,8.50839,2350.7,2350.2,4.25483]
[1727961838504,4.25443,2350.5,2350.2,0.930532]
[1727961838808,5.06237,2350.7,2350.0,0.7953]
[1727961838809,5.06226,2350.7,2350.0,0.7953]
[1727961838963,5.06226,2350.7,2349.9,4.25534]
[1727961838964,4.25461,2350.4,2349.9,4.25534]
[1727961839165,4.25443,2350.5,2350.0,4.2553]
[1727961839166,8.509,2350.5,2350.0,4.2553]
[1727961839396,4.25459,2350.4,2350.0,4.2553]
[1727961839717,4.25459,2350.4,2349.9,8.51075]
[1727961839880,0.55,2350.6,2349.3,0.7561]
[1727961840083,0.55,2350.6,2349.5,4.25619]
[1727961840084,0.55,2349.9,2349.5,4.25619]
[1727961840283,5.07051,2350.0,2349.3,8.51295]
[1727961840526,5.07051,2350.0,2349.0,0.52939041]
[1727961840527,0.55,2349.5,2349.0,4.25712]
[1727961840759,0.55,2349.5,2348.9,0.7561]
[1727961840934,0.55,2349.6,2348.6,0.7561]
[1727961841137,4.80568,2349.8,2349.2,4.25665]
[1727961841458,5.37919963,2350.7,2349.2,4.25665]
[1727961841459,4.25452,2350.5,2350.0,4.2553]
[1727961841879,0.8151,2350.6,2350.0,0.08510037]
[1727961842030,0.8151,2350.6,2350.3,4.25475]
[1727961842233,0.8151,2350.6,2350.1,4.25499]
[1727961842234,0.7587,2351.0,2350.4,0.0850894]
[1727961842449,0.44532468,2351.1,2350.9,4.25369]
[1727961842743,4.25262,2351.5,2351.0,7.678869]
[1727961842975,0.8261,2351.8,2350.7,6.19439963]
[1727961842976,4.25315,2351.2,2350.7,5.06913]
[1727961843279,4.25284,2351.4,2350.7,5.06913]
[1727961843459,4.25278,2351.4,2350.7,4.25393]
[1727961843660,4.25305,2351.3,2350.8,4.25375]
[1727961843974,4.25344,2351.1,2350.5,4.25432]
[1727961844130,4.25344,2351.1,2350.5,8.50857]
[1727961844335,4.25344,2351.1,2350.5,4.25425]
[1727961844563,4.25344,2351.1,2350.5,4.2544]
[1727961844746,0.55,2351.1,2350.8,4.25385]
[1727961844948,4.25214,2351.8,2350.6,4.6796]
[1727961844949,5.07846,2351.7,2350.7,0.08507631]
[1727961845182,0.8261,2351.7,2351.3,4.25279]
[1727961845333,0.8261,2351.7,2351.5,4.25251]
[1727961845536,0.8124,2352.1,2351.5,4.25251]
[1727961845785,4.25208,2351.8,2351.3,4.25284]
[1727961845930,8.5036,2352.0,2351.4,4.25274]
[1727961846133,0.8124,2352.1,2351.2,0.08504806]
[1727961846134,4.25189,2351.9,2351.2,8.50601]
[1727961846385,4.25214,2351.8,2351.3,4.25285]
[1727961846534,4.25191,2351.9,2351.4,4.25269]
[1727961846735,5.06405,2352.1,2351.4,0.08504847]
[1727961846929,4.25122,2352.3,2351.4,0.08504847]
[1727961846930,4.25122,2352.3,2351.7,4.25223]
[1727961847167,4.25136,2352.2,2351.7,4.25213]
[1727961847487,0.7954,2352.4,2351.8,4.25193]
[1727961847637,4.25124,2352.3,2351.7,4.25218]
[1727961847836,4.25154,2352.1,2351.7,4.25218]
[1727961848038,4.25154,2352.1,2351.5,5.02489]
[1727961848336,4.25154,2352.1,2351.6,0.502489]
[1727961848680,4.25135,2352.2,2351.7,4.25223]
[1727961848891,4.80166,2352.1,2351.6,4.754819]
[1727961849440,4.80166,2352.1,2351.3,0.850582]
[1727961849441,4.25232,2351.7,2351.3,0.850582]
[1727961849637,4.25199,2351.9,2351.3,0.850582]
[1727961849933,0.55,2351.8,2351.4,4.25268]
[1727961850349,4.25165,2352.1,2351.6,4.25225]
[1727961850533,4.25165,2352.1,2351.7,4.25213]
[1727961850534,0.55,2352.1,2351.7,4.25213]
[1727961850988,0.7954,2352.4,2351.6,0.08504199]
[1727961851167,9.62855963,2353.3,2351.6,0.08504199]
[1727961851168,4.2507,2352.6,2352.0,4.25169]
[1727961851372,4.2507,2352.6,2352.1,4.25151]
[1727961851682,0.7991,2352.7,2352.5,4.25066]
[1727961851927,4.69512191,2353.0,2352.6,4.25046]
[1727961851928,1.23870191,2353.0,2352.6,4.25046]
[1727961852178,4.24964,2353.2,2352.3,4.25109]
[1727961852179,4.25033,2352.8,2352.3,4.25109]
[1727961852380,4.25054,2352.7,2352.2,4.25125]
[1727961852589,5.04333,2353.1,2352.6,4.25048]
[1727961852590,5.04331,2353.1,2352.6,4.25048]
[1727961852882,5.04331,2353.1,2352.3,0.59602283]
[1727961852883,0.7936,2353.1,2352.3,0.51100775]
[1727961853094,0.7936,2353.1,2352.2,7.25132]
[1727961853095,4.25055,2352.7,2352.2,7.25132]
[1727961853385,4.25055,2352.7,2352.1,5.0344]
[1727961853386,4.25031,2352.8,2352.1,4.25144]
[1727961853591,4.25031,2352.8,2352.4,4.25094]
[1727961853737,5.04331,2353.1,2352.5,4.2507]
[1727961853942,4.25001,2353.0,2352.5,4.2507]
[1727961854177,5.04331,2353.1,2352.7,4.25042]
[1727961854366,5.04331,2353.1,2352.5,4.2507]
[1727961854548,4.2499,2353.0,2352.5,8.50141]
[1727961854781,5.04331,2353.1,2352.6,4.25061]
[1727961854946,4.2499,2353.0,2352.5,4.2507]
[1727961855149,4.2499,2353.0,2352.5,4.25079]
[1727961855468,4.2499,2353.0,2352.5,4.675859]
[1727961855674,4.2499,2353.0,2352.1,0.425144]
[1727961855898,4.2499,2353.0,2352.5,8.50142]
[1727961856100,0.7936,2353.1,2352.5,4.25071]
[1727961856318,4.25016,2352.9,2352.4,5.08276]
[1727961856813,5.04346,2353.1,2352.2,4.25123]
[1727961857011,4.25013,2352.9,2352.3,5.1439264]
[1727961857226,0.55,2353.0,2352.3,5.1439264]
[1727961857227,4.79991,2353.0,2352.4,4.25088]
[1727961857374,4.79991,2353.0,2352.3,0.8927864]
[1727961857375,0.8108,2353.4,2352.9,4.24989]
[1727961857573,0.8108,2353.4,2352.6,4.25049]
[1727961857574,4.24982,2353.1,2352.6,0.8097]
[1727961857885,4.24956,2353.2,2352.5,4.25075]
[1727961857886,4.2499,2353.0,2352.5,4.25075]
[1727961858073,5.06012,2353.4,2352.5,1.23945564]
[1727961858273,0.8108,2353.4,2352.6,0.08499642]
[1727961858573,4.24937,2353.3,2352.8,4.25014]
[1727961858794,4.24937,2353.3,2352.9,4.25006]
[1727961859204,0.8108,2353.4,2352.4,3.0]
[1727961859380,4.2499,2353.0,2352.6,4.25044]
[1727961859634,4.24985,2353.1,2352.6,4.25044]
[1727961859911,4.2498,2353.1,2352.6,4.25044]
[1727961860113,4.25017,2352.9,2352.5,4.25078]
[1727961860625,0.55,2353.0,2352.5,4.25078]
[1727961860825,0.55,2353.0,2352.4,0.08500706]
[1727961861140,0.55,2353.0,2352.3,5.1439264]
[1727961861141,4.25034,2352.8,2352.3,4.25114]
[1727961861267,0.55,2352.8,2352.4,4.25096]
[1727961861470,0.55,2352.8,2352.3,4.25114]
[1727961861775,4.8001,2352.9,2352.5,4.25076]
[1727961862124,4.25025,2352.8,2352.4,4.2509]
[1727961862427,4.24937,2353.3,2352.4,4.2509]
[1727961862428,4.24936,2353.3,2352.9,4.25005]